Workbook

Sheet SM-sarja
B1: Jorma Tuomala | E1: 20.5.1947 Kankaanpää
B2: MESTARUUSSARJA | E2: Runkosarja | I2: Kärkilyönnit (KL), pesänvälit | P2: Runkosarja TOP-30 | U2: Ylempi loppusarja | AB2: Alempi loppusarja | AJ2: Arvo-ottelut | AM2: Mitalit
B3: Vuosi | C3: Sija | D3: Seura | E3: OTT | F3: KUN | G3: LÖI | H3: TOI | I3: KL | J3: 0 > 1 | K3: 1 > 2 | L3: 2 > 3 | M3: 3 > k | N3: KL-% | P3: LÖI | Q3: TOI | R3: L+T | S3: KL | U3: OTT | V3: KUN | W3: LÖI | X3: TOI | Y3: KL | Z3: KL-% | AB3: OTT | AC3: KUN | AD3: LÖI | AE3: TOI | AF3: KL | AG3: KL-% | AI3: IL | AJ3: LL | AK3: Cup | AL3: K | AM3: H | AN3: P
B4: 1964 | C4: 4. | D4: KaMa | F4: suomensarja
B5: 1965 | C5: 4. | D5: KaMa | F5: suomensarja
B6: 1966 | C6: 2. | D6: KaMa | F6: suomensarja
B7: 1967 | C7: 1. | D7: KaMa | F7: suomensarja
B8: 1968 | C8: 5. | D8: KaMa | E8: 22 | F8: 0 | G8: 6 | H8: 25 | Q8: 21. | AJ8: 1
B9: 1969 | C9: 3. | D9: KaMa | E9: 20 | F9: 0 | G9: 9 | H9: 25 | Q9: 20. | AN9: 1
B10: 1970 | C10: 8. | D10: KaMa | E10: 22 | F10: 1 | G10: 5 | H10: 23 | Q10: 23.
B11: 1971 | C11: 2. | D11: KaMa | E11: 22 | F11: 1 | G11: 8 | H11: 28 | Q11: 8. | R11: 20. | AM11: 1
B12: 1972 | C12: 2. | D12: KaMa | E12: 22 | F12: 1 | G12: 3 | H12: 30 | Q12: 8. | AM12: 1
B13: 1973 | C13: 5. | D13: KaMa | E13: 22 | F13: 0 | G13: 6 | H13: 10
B14: 1974 | C14: 5. | D14: KaMa | E14: 9 | F14: 0 | G14: 1 | H14: 4
B15: 1975 | C15: 3. | D15: KaMa | E15: 21 | F15: 0 | G15: 4 | H15: 29 | Q15: 6. | R15: 26. | AK15: 1 | AN15: 1
B16: 1976 | C16: 5. | D16: KaMa | E16: 22 | F16: 0 | G16: 7 | H16: 19 | Q16: 25.
B17: 1977 | C17: 5. | D17: KaMa | E17: 22 | F17: 1 | G17: 10 | H17: 21 | I17: 131 | J17: 36 | K17: 53 | L17: 31 | M17: 11 | N17: ---- | Q17: 18. | R17: 27. | S17: 2.
B18: 1978 | C18: 10. | D18: Manse PP | F18: suomensarja
B19: 1979 | C19: 5. | D19: KaMa | E19: 6 | F19: 0 | G19: 1 | H19: 3 | I19: 15 | J19: 2 | K19: 6 | L19: 6 | M19: 1 | N19: ----
B20: 1980 | C20: 12. | D20: Tarmo | E20: 21 | F20: 1 | G20: 16 | H20: 9 | I20: 97 | J20: 18 | K20: 28 | L20: 34 | M20: 17 | N20: 64.5 %
B21: 1981 | C21: 8. | D21: Tarmo | F21: ykkössarja
B22: 1982
B23: 1983
B24: 1984 | C24: 3. | D24: VihtU | F24: suomensarja
B25: 1985 | C25: 9. | D25: VihtU | F25: suomensarja
B26: 1986 | C26: 10. | D26: VihtU | F26: suomensarja
B27: Yhteensä | E27: 231 | F27: 5 | G27: 76 | H27: 226 | I27: 243 | J27: 56 | K27: 87 | L27: 71 | M27: 29 | N27: 64.5 % | P27: 0-0-0 | Q27: 0-0-0 | R27: 0-0-0 | S27: 0-1-0 | U27: 0 | V27: 0 | W27: 0 | X27: 0 | Y27: 0 | Z27: 0.0 % | AB27: 0 | AC27: 0 | AD27: 0 | AE27: 0 | AF27: 0 | AG27: 0.0 % | AI27: 0 | AJ27: 1 | AK27: 1 | AL27: 0 | AM27: 2 | AN27: 2
B28: Pesispörssi | D28: 728.7
B30: URA SM-SARJASSA | E30: OTT | F30: KUN | G30: LÖI | H30: TOI | I30: KL | K30: ka/L | L30: ka/T | M30: ka/KL | N30: KL-% | P30: ENSIMMÄISET RUNKOSARJASSA
B31: Runkosarja | E31: 231 | F31: 5 | G31: 76 | H31: 226 | I31: 243 | K31: 0.35 | L31: 0.98 | M31: 4.96 | N31: 64.5 % | P31: Ottelu | R31: 05.05. 1968 KaMa - KPL 5-6 | Y31: 1. ottelu | AC31: 20 v 11 kk 15 pv | AE31: 7600 | AF31: 3. 27.05. 1979 Tahko - KaMa 10-7
B32: Ylempi loppusarja | P32: Lyöty | R32: 19.05. 1968 KaMa - NJ 11-1 | Y32: 3. ottelu | AC32: 20 v 11 kk 29 pv | AE32: 7013 | AF32: 5. 25.07. 1973 UPV - KaMa 4-2
B33: Alempi loppusarja | P33: Tuotu | R33: 05.05. 1968 KaMa - KPL 5-6 | Y33: 1. ottelu | AC33: 20 v 11 kk 15 pv | AE33: 6120 | AF33: 14. 10.07. 1974 SMJ - KaMa 4-1
B34: KAIKKI | E34: 231 | F34: 5 | G34: 76 | H34: 226 | I34: 243 | K34: 0.35 | L34: 0.98 | M34: 4.96 | N34: 64.5 % | P34: Kunnari | R34: 28.06. 1970 PuMu - KaMa 12-10 | Y34: 54. ottelu | AC34: 23 v 1 kk 8 pv
B36: Seurat | D36: KaMa = Kankaanpään Maila (1958) | K36: Manse PP = Mansen Pesäpallo (1978) | S36: Tarmo = Ikaalisten Tarmo (1908) | AA36: VihtU = Vihtiläjärven Urheilijat
B38: RUNKOSARJA, KA / OTT | F38: IKÄ | G38: OTT | H38: LÖI | I38: TOI | J38: TEHO | K38: KL | M38: SIJOITUS | P38: OTT | Q38: LÖI | R38: TOI | S38: TEHO | U38: KL | W38: RUNKOSARJA, TASASATASET, ka. / peli
B39: 1968 | C39: 5. | D39: KaMa | F39: 21 | G39: 22 | H39: =PRODUCT((F8+G8)/E8) -> 0.27 | I39: =PRODUCT(H8/E8) -> 1.14 | J39: =PRODUCT(F8+G8+H8)/E8 -> 1.41 | M39: 1945 - 1968 | O39: 21 | P39: 378. | Q39: 441. | R39: 269. | S39: 328. | W39: Ottelutilasto
B40: 1969 | C40: 3. | D40: KaMa | F40: 22 | G40: 20 | H40: =PRODUCT((F9+G9)/E9) -> 0.45 | I40: =PRODUCT(H9/E9) -> 1.25 | J40: =PRODUCT(F9+G9+H9)/E9 -> 1.70 | M40: 1945 - 1969 | O40: 21 | P40: 287. | Q40: 330. | R40: 180. | S40: 246. | W40: 200 | Y40: 31. 24.07. 1977 KaMa - IPV 6-8 | AG40: 30 v 2 kk 4 pv
B41: 1970 | C41: 8. | D41: KaMa | F41: 23 | G41: 22 | H41: 0.27 | I41: 1.05 | J41: 1.32 | M41: 1945 - 1970 | O41: 21 | P41: 228. | Q41: 305. | R41: 124. | S41: 196.
B42: 1971 | C42: 2. | D42: KaMa | F42: 24 | G42: 22 | H42: 0.41 | I42: 1.27 | J42: 1.68 | M42: 1945 - 1971 | P42: 160. | Q42: 254. | R42: 87. | S42: 134. | W42: Etenijätilasto
B43: 1972 | C43: 2. | D43: KaMa | F43: 25 | G43: 22 | H43: 0.18 | I43: 1.36 | J43: 1.55 | M43: 1945 - 1972 | P43: 132. | Q43: 251. | R43: 60. | S43: 114. | W43: 200 | Y43: 26. 05.06. 1977 KaMa - ViVe 7-3 | AG43: 190. ottelu | AK43: 1.05
B44: 1973 | C44: 5. | D44: KaMa | F44: 26 | G44: 22 | H44: 0.27 | I44: 0.45 | J44: 0.73 | M44: 1945 - 1973 | P44: 97. | Q44: 240. | R44: 51. | S44: 110.
B45: 1974 | C45: 5. | D45: KaMa | F45: 27 | G45: 9 | H45: 0.11 | I45: 0.44 | J45: 0.56 | M45: 1945 - 1974 | P45: 90. | Q45: 238. | R45: 46. | S45: 114.
B46: 1975 | C46: 3. | D46: KaMa | F46: 28 | G46: 21 | H46: 0.19 | I46: 1.38 | J46: 1.57 | M46: 1945 - 1975 | P46: 64. | Q46: 228. | R46: 35. | S46: 90.
B47: 1976 | C47: 5. | D47: KaMa | F47: 29 | G47: 22 | H47: 0.32 | I47: 0.86 | J47: 1.18 | M47: 1945 - 1976 | P47: 44. | Q47: 212. | R47: 27. | S47: 80.
B48: 1977 | C48: 5. | D48: KaMa | F48: 30 | G48: 22 | H48: =PRODUCT((F17+G17)/E17) -> 0.50 | I48: =PRODUCT(H17/E17) -> 0.95 | J48: =PRODUCT(F17+G17+H17)/E17 -> 1.45 | K48: =PRODUCT(I17/E17) -> 5.95 | M48: 1945 - 1977 | P48: 29. | Q48: 188. | R48: 22. | S48: 64. | U48: 2.
B49: 1978 | F49: 31 | M49: 1945 - 1978 | P49: 34. | Q49: 193. | R49: 24. | S49: 68. | U49: 64.
B50: 1979 | C50: 5. | D50: KaMa | F50: 32 | G50: 6 | H50: 0.17 | I50: 0.50 | J50: 0.67 | K50: =PRODUCT(I19/E19) -> 2.50 | M50: 1945 - 1979 | P50: 29. | Q50: 203. | R50: 24. | S50: 69. | U50: 88.
B51: 1980 | C51: 12. | D51: Tarmo | F51: 33 | G51: 21 | H51: =PRODUCT((F20+G20)/E20) -> 0.81 | I51: =PRODUCT(H20/E20) -> 0.43 | J51: =PRODUCT(F20+G20+H20)/E20 -> 1.24 | K51: =PRODUCT(I20/E20) -> 4.62 | M51: 1945 - 1980 | P51: 20. | Q51: 160. | R51: 24. | S51: 57. | U51: 65.

Sheet MYP, MSS
B1: Jorma Tuomala | E1: 20.5.1947 Kankaanpää
B2: YKKÖSPESIS | E2: Runkosarja | L2: Runkosarja TOP-10 | Q2: Jatkosarjat | X2: SUOMENSARJA | AA2: Runkosarja | AH2: Runkosarja TOP-10 | AM2: Jatkosarjat
B3: Vuosi | C3: Sija | D3: Seura | E3: OTT | F3: KUN | G3: LÖI | H3: TOI | I3: KL | J3: KL-% | L3: LÖI | M3: TOI | N3: L+T | O3: KL | Q3: OTT | R3: KUN | S3: LÖI | T3: TOI | U3: KL | V3: KL-% | X3: Vuosi | Y3: Sija | Z3: Seura | AA3: OTT | AB3: KUN | AC3: LÖI | AD3: TOI | AE3: KL | AF3: KL-% | AH3: LÖI | AI3: TOI | AJ3: L+T | AK3: KL | AM3: OTT | AN3: KUN | AO3: LÖI | AP3: TOI | AQ3: KL | AR3: KL-%
X4: 1964 | Y4: 4. | Z4: KaMa
X5: 1965 | Y5: 4. | Z5: KaMa
X6: 1966 | Y6: 2. | Z6: KaMa
X7: 1967 | Y7: 1. | Z7: KaMa
B9: 1981 | C9: 8. | D9: Tarmo | E9: 8 | F9: 0 | G9: 6 | H9: 1 | I9: 33 | J9: 53.2 %
X11: 1984 | Y11: 3. | Z11: VihtU | AA11: 17 | AB11: 1 | AC11: 36 | AD11: 17 | AH11: 1. | AJ11: 1.
X12: 1985 | Y12: 9. | Z12: VihtU | AA12: 16 | AB12: 1 | AC12: 11 | AD12: 16
X13: 1986 | Y13: 10. | Z13: VihtU | AA13: 1 | AB13: 0 | AC13: 0 | AD13: 0
B14: YHTEENSÄ | E14: =SUM(E4:E13) -> 8 | F14: =SUM(F4:F13) -> 0 | G14: =SUM(G4:G13) -> 6 | H14: =SUM(H4:H13) -> 1 | I14: =SUM(I4:I13) -> 33 | J14: 53.2 % | K14: =SUM(K4:K13) -> 0 | Q14: =SUM(Q4:Q13) -> 0 | R14: =SUM(R4:R13) -> 0 | S14: =SUM(S4:S13) -> 0 | T14: =SUM(T4:T13) -> 0 | U14: =SUM(U4:U13) -> 0 | V14: 0.0 % | W14: =SUM(W4:W13) -> 0 | X14: YHTEENSÄ | AA14: =SUM(AA4:AA13) -> 34 | AB14: =SUM(AB4:AB13) -> 2 | AC14: =SUM(AC4:AC13) -> 47 | AD14: =SUM(AD4:AD13) -> 33 | AE14: =SUM(AE4:AE13) -> 0 | AF14: 0.0 % | AG14: =SUM(AG4:AG13) -> 0 | AM14: =SUM(AM4:AM13) -> 0 | AN14: =SUM(AN4:AN13) -> 0 | AO14: =SUM(AO4:AO13) -> 0 | AP14: =SUM(AP4:AP13) -> 0 | AQ14: =SUM(AQ4:AQ13) -> 0 | AR14: 0.0 % | AS14: =SUM(AS4:AS13) -> 0
B16: KAIKKI OTTELUT | E16: OTT | F16: KUN | G16: LÖI | H16: TOI | I16: KL | J16: KL-% | L16: ka/L | M16: ka/T | N16: ka/l+t | O16: ka/kl | R16: Seurat | T16: KaMa = Kankaanpään Maila (1958)
B17: SUPERPESIS | E17: 231 | F17: 5 | G17: 76 | H17: 226 | I17: 243 | J17: 64.5 % | K17: =PRODUCT(I17/J17) -> 376.744186 | L17: =PRODUCT((F17+G17)/E17) -> 0.35 | M17: =PRODUCT(H17/E17) -> 0.98 | N17: =PRODUCT((F17+G17+H17)/E17) -> 1.33 | O17: 4.96 | T17: Manse PP = Mansen Pesäpallo (1978)
B18: YKKÖSPESIS | E18: =PRODUCT(E14+Q14) -> 8 | F18: =PRODUCT(F14+R14) -> 0 | G18: =PRODUCT(G14+S14) -> 6 | H18: =PRODUCT(H14+T14) -> 1 | I18: =PRODUCT(I14+U14) -> 33 | J18: 0.0 % | K18: =PRODUCT(K14+W14) -> 0 | L18: =PRODUCT((F18+G18)/E18) -> 0.75 | M18: =PRODUCT(H18/E18) -> 0.13 | N18: =PRODUCT((F18+G18+H18)/E18) -> 0.88 | O18: =PRODUCT(I18/E18) -> 4.13 | T18: Tarmo = Ikaalisten Tarmo (1908)
B19: SUOMENSARJA | E19: =PRODUCT(AA14+AM14) -> 34 | F19: =PRODUCT(AB14+AN14) -> 2 | G19: =PRODUCT(AC14+AO14) -> 47 | H19: =PRODUCT(AD14+AP14) -> 33 | I19: =PRODUCT(AE14+AQ14) -> 0 | J19: 0.0 % | K19: =PRODUCT(AG14+AS14) -> 0 | L19: =PRODUCT((F19+G19)/E19) -> 1.44 | M19: =PRODUCT(H19/E19) -> 0.97 | N19: =PRODUCT((F19+G19+H19)/E19) -> 2.41 | O19: =PRODUCT(I19/E19) -> 0.00 | T19: VihtU = Vihtiläjärven Urheilijat
B20: YHTEENSÄ | E20: =SUM(E17:E19) -> 273 | F20: =SUM(F17:F19) -> 7 | G20: 129 | H20: 260 | I20: 276 | J20: 0.0 % | K20: =SUM(K17:K19) -> 376.744186 | L20: =PRODUCT((F20+G20)/E20) -> 0.50 | M20: =PRODUCT(H20/E20) -> 0.95 | N20: =PRODUCT((F20+G20+H20)/E20) -> 1.45 | O20: =PRODUCT(I20/57) -> 4.84

Sheet Arvo-ottelut
B1: LIITTO - LEHDISTÖ - KORTTI
B2: Jorma Tuomala | C2: 20.5.1947 Kankaanpää
B3: MIEHET | C3: Tulos | D3: Joukkue | E3: Seura | G3: V | H3: T | I3: H | J3: Up. | K3: Lj. | L3: Palk. | M3: O | N3: K | O3: L | P3: T | Q3: KL | R3: 1 | S3: 2 | T3: 3 | U3: k | V3: KL-% | W3: Pelinjohtaja | X3: Yleisöä
B4: 19.06. 1968 Seinäjoki | C4: 5-7 | D4: Liitto | E4: KaMa | I4: 1 | J4: s | M4: 1 | W4: Antero Viherkenttä | X4: 2100
B5: Ikä ensimmäisessä ottelussa | C5: 21 v 0 kk 30 pv

Sheet Kärkilyönnit
B1: KÄRKILYÖNNIT RUNKOSARJASSA | V1: VUOSITTAISET SIJOITUKSET TOP - 30
G2: 0 > 1 | J2: 1 > 2 | M2: 2 > 3 | P2: 3 > k | S2: Yhteensä
B3: Vuosi | C3: Sija | D3: Seura | E3: OTT | F3: KL | G3: YHT | H3: % | I3: KL | J3: YHT | K3: % | L3: KL | M3: YHT | N3: % | O3: KL | P3: YHT | Q3: % | R3: KL | S3: YHT | T3: % | V3: Vuosi | W3: Sija | X3: Seura | Y3: 0 > 1 | Z3: 1 > 2 | AA3: 2 > 3 | AB3: 3 > k | AC3: KL
B4: 1980 | C4: 12. | D4: Tarmo | E4: 21 | F4: 18 | G4: =PRODUCT(F4/H4) -> 23 | H4: 77.8 % | I4: 28 | J4: =PRODUCT(I4/K4) -> 43 | K4: 65.9 % | L4: 34 | M4: =PRODUCT(L4/N4) -> 44 | N4: 77.1 % | O4: 17 | P4: =PRODUCT(O4/Q4) -> 43 | Q4: 40.0 % | R4: 97 | S4: =PRODUCT(G4+J4+M4+P4) -> 152 | T4: 64.5 % | V4: 1980 | W4: 12. | X4: Tarmo | Z4: 28. | AA4: 18.
B5: Yhteensä | E5: =SUM(E4:E4) -> 21 | F5: =SUM(F4:F4) -> 18 | G5: 23 | H5: =PRODUCT(F5/G5) -> 78.3 % | I5: =SUM(I4:I4) -> 28 | J5: 43 | K5: =PRODUCT(I5/J5) -> 65.1 % | L5: =SUM(L4:L4) -> 34 | M5: 44.0 | N5: =PRODUCT(L5/M5) -> 77.3 % | O5: =SUM(O4:O4) -> 17 | P5: 43 | Q5: =PRODUCT(O5/P5) -> 39.5 % | R5: =SUM(R4:R4) -> 97 | S5: =SUM(S4:S4) -> 152 | T5: 64.5 %
